[Event "Teplice Open 2022"]
[Site "Teplice"]
[Date "2022.06.18"]
[Round "1.15"]
[White "Kozak, Adam"]
[Black "Hadraba, Vladimir"]
[Result "1-0"]
[ECO "E94"]
[WhiteElo "2532"]
[BlackElo "2089"]
[Annotator "TA"]
[PlyCount "49"]
[EventDate "2022.06.18"]
[EventType "swiss"]
[EventCountry "CZE"]
[SourceTitle "playchess.com"]
[Source "ChessBase"]
[SourceQuality "1"]
[TimeControl "40/5400+30:1800+30"]

{[%evp 20,49,45,49,45,37,42,27,33,21,27,26,36,27,31,28,50,33,46,32,76,53,108,102,245,276,262,271,264,256,451,441]} 1. Nf3 {[%emt 0:00:10]} Nf6 {[%emt 0:00:11]} 2. c4 {[%emt 0:00:13]} g6 {[%emt 0:00:12]} 3. Nc3 {[%emt 0:00:09]} Bg7 {[%emt 0:00:06]} 4. e4 {[%emt 0:00:06]} d6 {[%emt 0:00:05]} 5. d4 {[%emt 0:00:11]} O-O {[%emt 0:00:17]} 6. Be2 {[%emt 0:00:11]} Nbd7 {[%emt 0:00:17]} 7. O-O {[%emt 0:00:41]} e5 {[%emt 0:00:22]} 8. Be3 {[%emt 0:02:54]} Ng4 {[%emt 0:02:21]} 9. Bg5 {[%emt 0:01:38]} f6 {[%emt 0:00:13]} 10. Bc1 {[%emt 0:05:30]} Nh6 {[%emt 0:05:56]} 11. dxe5 {[%emt 0:08:33]} dxe5 {[%emt 0:06:31] E94: King's Indian: Classical: 6 Be2 e5 7 0-0: Various Black 7th moves.} 12. b4 {[%emt 0:00:31]} Nf7 {[%emt 0:12:37]} 13. Ba3 {[%emt 0:03:51]} Re8 {[%emt 0:09:12] [#] White has an edge.} 14. Qa4 $146 {[%emt 0:22:50]} ({Predecessor:} 14. Qb3 c6 15. Rfd1 Qc7 16. b5 Bf8 17. Na4 Bxa3 18. Qxa3 Nf8 19. h3 Ne6 20. Bf1 {½-½ (37) Kostic,V (2420)-Antic,D (2460) Vrnjacka Banja 1998}) 14... Nf8 {[%emt 0:15:06]} 15. Rfd1 {[%emt 0:12:12]} Bd7 {[%emt 0:00:25]} 16. b5 $36 {[%emt 0:01:31][%mdl 2048] White has some pressure.} Ne6 {[%emt 0:21:36]} 17. c5 {[%emt 0:00:42] aiming for c6.} c6 {[%emt 0:01:47]} 18. Bc4 {[%emt 0:03:48]} Qc8 {[%emt 0:05:30]} 19. Rab1 {[%emt 0:04:37]} Ned8 {[%emt 0:04:13]} 20. h3 {[%emt 0:13:26] White is much more active.} Be6 {[%emt 0:01:46]} (20... Kh8 $14) 21. bxc6 $16 {[%emt 0:00:07]} bxc6 {[%emt 0:01:36] [#] Black cannot hold the game after this.} (21... Nxc6 $16 22. Bd5 Bf8) 22. Ba6 $1 $18 {[%emt 0:01:12]} Qc7 {[%emt 0:00:39] [#]} 23. Nd5 $1 {[%emt 0:00:20][%mdl 512]} Bxd5 24. exd5 {[%emt 0:00:08][%cal Be4d5,Bd5c6][%mdl 32]} Rf8 $2 {[%emt 0:01:38]} (24... e4) 25. dxc6 {[%emt 0:00:59] Weighted Error Value: White=0.03 (flawless) /Black=0.42} 1-0

[Event "Teplice Open 2022"]
[Site "Teplice"]
[Date "2022.06.18"]
[Round "1.16"]
[White "Devnani Kush"]
[Black "Blomqvist, Erik"]
[Result "0-1"]
[ECO "E11"]
[WhiteElo "2086"]
[BlackElo "2523"]
[Annotator "TA"]
[PlyCount "78"]
[EventDate "2022.06.18"]
[EventType "swiss"]
[EventCountry "CZE"]
[SourceTitle "playchess.com"]
[Source "ChessBase"]
[SourceQuality "1"]
[TimeControl "40/5400+30:1800+30"]

{[%evp 12,78,16,22,18,14,14,27,16,5,7,-3,18,18,21,10,20,8,15,-40,-40,-52,-39,-51,-38,-52,-39,-43,-29,-43,0,-72,-81,-88,-91,-81,-67,-64,-51,-122,-122,-122,-122,-131,-131,-131,-131,-277,-267,-315,-314,-420,-379,-502,-372,-352,0,-493,-407,-399,-395,-441,-401,-564,-550,-514,-497,-654,-574]} 1. d4 {[%emt 0:00:08]} Nf6 {[%emt 0:00:08]} 2. c4 {[%emt 0:00:08]} e6 {[%emt 0:00:07]} 3. Nf3 {[%emt 0:00:05]} d5 {[%emt 0:00:19]} 4. g3 {[%emt 0:00:41]} Bb4+ {[%emt 0:00:40]} 5. Bd2 {[%emt 0:00:07]} a5 {[%emt 0:01:05]} 6. Qc2 {[%emt 0:04:30]} O-O {[%emt 0:00:27]} 7. Bg2 {[%emt 0:01:09]} Be7 {[%emt 0:00:22] E11: Bogo-Indian.} 8. O-O {[%emt 0:01:13]} c6 {[%emt 0:00:15]} 9. Rd1 {[%emt 0:02:23]} Nbd7 {[%emt 0:03:41] White has an edge.} 10. b3 {[%emt 0:07:55]} (10. Bf4 {keeps more tension.} h6 11. Ne5 a4 12. Nd2) 10... b6 {[%emt 0:02:11][%cal Bb7b6,Bb6b5,Bb5b4][%mdl 32]} 11. Bc3 {[%emt 0:13:44]} Ba6 {[%emt 0:07:31]} 12. Nbd2 {[%emt 0:00:31]} b5 {[%emt 0:01:19]} 13. Bb2 {[%emt 0:18:25]} a4 {[%emt 0:11:20][%cal Ba5a4,Ba4a3][%mdl 32] [#]} 14. Rac1 $146 {[%emt 0:16:38]} ({Predecessor:} 14. c5 b4 15. e4 a3 16. Bc1 dxe4 17. Nxe4 Nxe4 18. Qxe4 Nxc5 19. Qc2 Nd7 20. Qxc6 {0-1 (59) Jumabayev,R (2611)-Nguyen,N (2629) Doha 2016}) 14... Qb8 {[%emt 0:09:01]} 15. cxd5 {[%emt 0:21:50]} (15. Re1 $11) 15... cxd5 $15 {[%emt 0:01:07]} 16. Qc7 {[%emt 0:01:51]} a3 {[%emt 0:09:53]} 17. Ba1 {[%emt 0:00:04]} b4 {[%emt 0:00:24]} 18. e3 {[%emt 0:00:58]} Rc8 {[%emt 0:03:19]} 19. Qxb8 {[%emt 0:00:05]} Raxb8 {[%emt 0:00:10]} 20. Ne5 {[%emt 0:01:37] Hoping for Nc6.} Bb5 {[%emt 0:12:25] Inhibits Nc6.} 21. Nxd7 {[%emt 0:02:59]} (21. Bf1 $11 {keeps the balance.} Bxf1 22. Kxf1) 21... Nxd7 $17 {[%emt 0:00:44]} 22. Bf1 {[%emt 0:00:12]} Bxf1 {[%emt 0:00:30]} 23. Kxf1 {[%emt 0:00:10]} f5 {[%emt 0:00:18]} 24. Nf3 {[%emt 0:00:54]} Bd6 {[%emt 0:01:16]} 25. Ne1 {[%emt 0:01:02] White is now going downhill.} (25. Ng5 $15) 25... g5 {[%emt 0:00:48][%cal Bg7g5,Bg5g4][%mdl 32] Black is more active.} 26. Nd3 {[%emt 0:01:29]} g4 {[%emt 0:00:26]} 27. Ke2 {[%emt 0:00:18]} Nf6 {[%emt 0:00:46]} 28. Nc5 {[%emt 0:01:34]} Kf7 {[%emt 0:01:09]} 29. Rc2 {[%emt 0:00:41] [#]} (29. h3 $17) 29... h5 $1 $19 {[%emt 0:07:51][%cal Bh7h5,Bh5h4][%mdl 32]} 30. Rdc1 {[%emt 0:00:24]} h4 {[%emt 0:01:05]} 31. Kd3 {[%emt 0:00:59]} Rh8 {[%emt 0:01:11]} 32. Na6 {[%emt 0:00:16]} Rb6 {[%emt 0:02:15]} 33. Nc5 {[%emt 0:01:13]} Rbb8 {[%emt 0:04:25]} (33... Rh5 $142 34. Re2 hxg3 35. fxg3 Rb8) 34. Na6 $1 {[%emt 0:00:05]} Ra8 {[%emt 0:00:55][%cal Bb8a8,Ba8a7,Ba7c7][%mdl 32]} 35. Nc5 {[%emt 0:00:38]} Ra7 {[%emt 0:01:26]} 36. Rd1 {[%emt 0:00:49]} Rc7 {[%emt 0:01:26]} 37. Rdc1 {[%emt 0:00:18]} (37. Kd2 $142 hxg3 38. hxg3) 37... hxg3 {[%emt 0:01:29] Black is clearly winning.} 38. fxg3 {[%emt 0:00:50]} Ne4 {[%emt 0:00:49]} 39. Na6 {[%emt 0:00:35] [#]} Nf2+ $1 {[%emt 0:00:53][%mdl 512] Weighted Error Value: White=0.32/Black=0.19 (very precise)} 0-1

[Event "Teplice Open 2022"]
[Site "Teplice"]
[Date "2022.06.18"]
[Round "1.17"]
[White "Iniyan, P."]
[Black "Uhl, Michael"]
[Result "1-0"]
[ECO "D37"]
[WhiteElo "2518"]
[BlackElo "2084"]
[Annotator "TA"]
[PlyCount "106"]
[EventDate "2022.06.18"]
[EventType "swiss"]
[EventCountry "CZE"]
[SourceTitle "playchess.com"]
[Source "ChessBase"]
[SourceQuality "1"]
[TimeControl "40/5400+30:1800+30"]

{[%evp 27,106,27,4,-58,-26,-77,-85,-90,-92,-83,-73,-73,-73,-77,-84,-93,-8,-8,-8,-8,-6,-7,0,-2,0,0,0,0,0,0,31,47,37,5,93,43,45,0,86,44,247,245,254,250,254,265,252,261,227,204,252,263,528,508,488,469,779,742,732,709,654,613,954,752,4133,1628,1389,1349,29962,12831,29987,29988,29988,29989,29989,29988,29995,29996,29996,29997,29997]} 1. d4 {[%emt 0:00:19]} d5 {[%emt 0:00:10]} 2. c4 {[%emt 0:00:06]} e6 {[%emt 0:00:13]} 3. Nc3 {[%emt 0:00:07]} Nf6 {[%emt 0:00:13]} 4. Nf3 {[%emt 0:00:16]} Be7 {[%emt 0:00:23]} 5. Bf4 {[%emt 0:00:17]} O-O {[%emt 0:00:32]} 6. e3 {[%emt 0:00:08]} c5 {[%emt 0:01:23]} 7. dxc5 {[%emt 0:00:23]} Bxc5 {[%emt 0:00:51]} 8. Qc2 {[%emt 0:00:18]} Qa5 {[%emt 0:08:28]} 9. a3 {[%emt 0:03:03]} Nc6 {[%emt 0:12:50]} 10. O-O-O {[%emt 0:00:13]} Be7 {[%emt 0:11:58][%cal Bc5e7,Be7f6,Bf6g7][%mdl 32]} 11. g4 {[%emt 0:05:33]} dxc4 {[%emt 0:03:10]} 12. Bxc4 {[%emt 0:00:10]} e5 {[%emt 0:03:40]} 13. g5 {[%emt 0:00:05]} exf4 {[%emt 0:00:41]} 14. gxf6 {[%emt 0:00:08]} Bxf6 {[%emt 0:02:18] And now ...Bg4 would win.} 15. Rd5 {[%emt 0:09:27] D37: Queen's Gambit Declined: 5 Bf4.} (15. Nd5 $11 Bd8 16. Rhg1 (16. Nxf4 Bg4 $17)) 15... Qc7 $1 $15 {[%emt 0:01:23]} 16. Rh5 {[%emt 0:00:15]} (16. Rg1 $11 g6 17. Rb5) 16... g6 $17 {[%emt 0:02:43]} 17. Rg1 {[%emt 0:03:21][%cal Og1g6] Against Bg4. White wants to mate with Rxg6+! Black is better.} Be6 $1 {[%emt 0:17:44] A strong pair of Bishops.} 18. Ne4 {[%emt 0:04:14] [#]} Bg7 $146 {[%emt 0:02:14]} ({Predecessor:} 18... Qe7 19. Nxf6+ Qxf6 20. Bxe6 Qxe6 21. Ng5 Qa2 22. Nxh7 Qa1+ 23. Qb1 Qxb1+ 24. Kxb1 fxe3 25. fxe3 {½-½ (66) Gyimesi,Z (2553)-Zumsande,M (2398) Pardubice 2003}) 19. Bxe6 {[%emt 0:10:27]} fxe6 {[%emt 0:00:09]} 20. Neg5 {[%emt 0:00:02][%csl LRe6,LRh7]} Rac8 {[%emt 0:05:05]} 21. Kb1 {[%emt 0:15:27]} (21. Nxe6 $2 Qd6 22. Rc5 (22. Nxf8 $2 Ne7 $19) 22... Qxe6 $19) 21... Nd8 {[%emt 0:02:27]} ({Black should play} 21... Ne5 $17 22. Qxc7 Rxc7 23. Nxe5 fxe3 24. fxe3 (24. Nxe6 $2 exf2 25. Rf1 gxh5 $19) 24... gxh5 25. Nxe6 Re7 26. Nxf8 Rxe5) 22. Qxc7 $11 {[%emt 0:02:00] Dancing on a razor blade.} Rxc7 {[%emt 0:00:02]} 23. Rxh7 {[%emt 0:00:08]} fxe3 {[%emt 0:00:50]} 24. fxe3 {[%emt 0:00:06] [#]} Rxf3 $1 {[%emt 0:05:30]} 25. Rxg7+ $1 {[%emt 0:00:05]} Kxg7 {[%emt 0:00:09]} 26. Nxf3 {[%emt 0:00:03][%mdl 4096] Endgame KRN-KRN} Nc6 {[%emt 0:00:42]} 27. h4 {[%emt 0:03:01]} Kf6 {[%emt 0:04:51]} 28. Rf1 {[%emt 0:01:27]} Rd7 {[%emt 0:01:59]} 29. Ng5+ {[%emt 0:02:11]} Ke5 {[%emt 0:00:17]} 30. Rf4 {[%emt 0:02:12]} Nd8 {[%emt 0:01:50]} (30... Rd1+ $11 {keeps the balance.} 31. Kc2 Rh1) 31. Rf8 {[%emt 0:01:23] White is more active.} (31. Nf3+ $16 Kd6 32. Rd4+ Kc7 33. Rxd7+ Kxd7 34. Ne5+ Ke7 35. Nxg6+ Kf6 36. Nf4) 31... Nc6 $14 {[%emt 0:00:55]} 32. Rf4 {[%emt 0:01:18]} Nd8 {[%emt 0:00:11]} 33. Kc2 {[%emt 0:00:10]} Rd6 $2 {[%emt 0:05:05] This move loses the game for Black.} ({Better is} 33... Kd6 $14) 34. Nf3+ $18 {[%emt 0:02:03]} Kd5 {[%emt 0:00:10]} 35. Rd4+ {[%emt 0:00:05]} Kc6 {[%emt 0:00:11]} 36. Ne5+ $1 {[%emt 0:00:09]} Kc7 {[%emt 0:00:26]} 37. Rxd6 {[%emt 0:00:09]} ({Don't do} 37. Nxg6 $6 Rc6+ 38. Kd3 Rc5 $16) 37... Kxd6 {[%emt 0:00:10]} 38. Nxg6 {[%emt 0:00:02] KN-KN} e5 {[%emt 0:00:17]} 39. Kd3 $1 {[%emt 0:00:23] Strongly threatening Ke4.} Ke6 $2 {[%emt 0:00:20]} (39... Kd5 {was called for.} 40. e4+ Ke6) 40. Ke4 {[%emt 0:00:06]} Nf7 {[%emt 0:00:16] [#]} 41. Nf8+ $1 {[%emt 0:30:16]} Ke7 {[%emt 0:32:19]} (41... Kf6 $142 42. Nd7+ Ke6) 42. Nh7 {[%emt 0:00:21]} Nd6+ {[%emt 0:00:31]} 43. Kxe5 {[%emt 0:03:01]} Nc4+ {[%emt 0:00:04] [#]} 44. Kd4 $1 {[%emt 0:00:08]} Nxb2 {[%emt 0:00:07]} 45. h5 {[%emt 0:00:18]} b5 {[%emt 0:00:19]} 46. e4 {[%emt 0:01:44]} (46. h6 $142 Nd1 47. e4) 46... Nc4 {[%emt 0:00:23]} 47. e5 {[%emt 0:01:46][%cal Be4e5,Be5e6,Be6e7][%mdl 32]} Nxa3 {[%emt 0:04:18]} 48. h6 {[%emt 0:00:34]} (48. Ng5 $142 Nc2+ 49. Ke4 Kf8 50. h6 Nb4 51. e6 Nc6 52. Kd5 Ne7+ 53. Kd6) 48... Nc4 {[%emt 0:01:44]} 49. Ng5 {[%emt 0:00:05] White mates.} Kf8 {[%emt 0:01:22]} 50. e6 {[%emt 0:00:05]} Nd6 {[%emt 0:00:59]} 51. e7+ {[%emt 0:00:05]} Kg8 {[%emt 0:00:28]} 52. Ke5 {[%emt 0:00:12]} Ne8 {[%emt 0:00:25]} 53. Kf5 {[%emt 0:00:05]} Nd6+ {[%emt 0:00:00] Weighted Error Value: White=0.09 (flawless) /Black=0.78} 1-0

[Event "Teplice Open 2022"]
[Site "Teplice"]
[Date "2022.06.18"]
[Round "1.18"]
[White "Kupsa, Matej"]
[Black "Budisavljevic, Luka"]
[Result "0-1"]
[ECO "D03"]
[WhiteElo "2082"]
[BlackElo "2507"]
[Annotator "TA"]
[PlyCount "156"]
[EventDate "2022.06.18"]
[EventType "swiss"]
[EventCountry "CZE"]
[SourceTitle "playchess.com"]
[Source "ChessBase"]
[SourceQuality "1"]
[TimeControl "40/5400+30:1800+30"]

{[%evp 18,156,0,0,8,0,0,0,0,4,27,0,0,0,0,0,0,0,0,0,0,0,0,0,0,0,0,0,0,0,0,0,0,0,0,0,0,0,21,20,20,0,25,0,51,0,6,7,7,0,0,0,0,0,0,0,0,0,0,0,0,0,0,0,0,0,0,0,0,0,0,0,0,0,0,0,0,0,0,0,0,0,0,0,0,0,0,0,0,0,0,0,0,0,0,-63,-149,-157,-157,-157,-157,-162,-157,-258,-258,-258,-258,-258,-258,-258,-258,-29977,-29978,-29978,-29979,-29979,-29980,-29980,-29981,-29981,-29982,-29982,-29982,-29982,-29981,-29985,-29986,-29986,-29987,-29987,-29988,-29988,-29989,-29990,-29990,-29990,-29990,-29990,-29991,-29991,-29991]} 1. d4 {[%emt 0:00:03]} Nf6 {[%emt 0:01:27]} 2. Bg5 {[%emt 0:00:10]} d5 {[%emt 0:00:43]} 3. e3 {[%emt 0:00:47]} e6 {[%emt 0:00:45]} 4. Nf3 {[%emt 0:01:03]} h6 {[%emt 0:00:19]} 5. Bh4 {[%emt 0:00:43]} c5 {[%emt 0:01:45]} 6. c3 {[%emt 0:04:25]} Nbd7 {[%emt 0:00:52]} 7. Nbd2 {[%emt 0:01:03]} Be7 {[%emt 0:05:16]} 8. a4 {[%emt 0:08:00]} O-O {[%emt 0:04:43]} 9. Bd3 {[%emt 0:01:23]} b6 {[%emt 0:00:43]} 10. O-O {[%emt 0:00:29]} Bb7 {[%emt 0:00:20] D03: 1 d4 d5 2 Nf3 Nf6 3 Bg5, including Torre Attack with early ...d5.} 11. Qe2 {[%emt 0:03:48]} a5 {[%emt 0:04:37]} 12. Ne5 {[%emt 0:07:20]} Nxe5 {[%emt 0:12:47] The position is equal.} 13. dxe5 {[%emt 0:00:07] [#]} Nd7 $146 {[%emt 0:00:11][%csl LRe5,LRh4]} ({Predecessor:} 13... Ne8 14. Bg3 d4 15. exd4 cxd4 16. cxd4 Qxd4 17. Nf3 Qb4 18. Rfc1 Bd5 19. Qd2 Qg4 {1-0 (32) Buran,J (2216)-Stevik,P (1866) Topolcany 2020}) 14. Bxe7 {[%emt 0:00:31]} Qxe7 {[%emt 0:00:01]} 15. f4 {[%emt 0:00:47]} f6 {[%emt 0:03:02]} 16. exf6 {[%emt 0:01:18]} Rxf6 {[%emt 0:00:34]} 17. e4 {[%emt 0:01:28]} c4 {[%emt 0:04:29]} 18. Bc2 {[%emt 0:03:03]} Qc5+ {[%emt 0:00:46]} 19. Kh1 {[%emt 0:01:16]} Raf8 {[%emt 0:01:23]} 20. exd5 {[%emt 0:07:32]} exd5 {[%emt 0:00:38]} 21. Rae1 {[%emt 0:01:19]} Qd6 {[%emt 0:08:55]} 22. f5 {[%emt 0:06:46]} Nc5 {[%emt 0:00:36]} 23. Nf3 {[%emt 0:01:30]} Bc6 {[%emt 0:08:30]} 24. Qd1 {[%emt 0:04:49]} Re8 {[%emt 0:04:41]} 25. Nd4 {[%emt 0:03:20]} Rxe1 {[%emt 0:06:07]} 26. Rxe1 {[%emt 0:00:11]} Bd7 {[%emt 0:01:01]} 27. g3 {[%emt 0:08:15]} Ne4 {[%emt 0:06:24]} 28. Bxe4 {[%emt 0:04:48]} dxe4 {[%emt 0:00:01]} 29. Qe2 {[%emt 0:00:23]} (29. Rxe4 Bc6 30. Qg4 Bxe4+ 31. Qxe4 Qd7 $17) 29... Qc5 {[%emt 0:02:44]} 30. Qxe4 {[%emt 0:01:17]} Bxa4 {[%emt 0:01:03]} (30... Bxf5 $11 31. Nxf5 (31. Qb7 Bh3 $11) 31... Rxf5) 31. h4 {[%emt 0:03:02]} (31. Qe5 $14) 31... Bc6 {[%emt 0:11:28]} 32. Nxc6 {[%emt 0:00:11]} Qxc6 {[%emt 0:00:30]} 33. Kg2 {[%emt 0:02:36]} Qxe4+ {[%emt 0:06:15]} 34. Rxe4 $11 {[%emt 0:00:07][%mdl 4096] Endgame KR-KR} Rd6 {[%emt 0:01:03]} 35. Kf3 {[%emt 0:02:23]} Rd2 {[%emt 0:00:36]} 36. Re2 {[%emt 0:00:21]} Rxe2 {[%emt 0:01:55]} 37. Kxe2 {[%emt 0:00:05] KP-KP} Kf7 {[%emt 0:00:11] aiming for ...Kf6.} 38. Ke3 {[%emt 0:01:36] Black must now prevent Kd4.} Kf6 {[%emt 0:00:01]} 39. Kd4 {[%emt 0:01:48]} Kxf5 {[%emt 0:00:15]} 40. Kxc4 {[%emt 0:00:06]} Kg4 {[%emt 0:00:29]} 41. Kb5 {[%emt 0:30:23] White threatens c4 and mate.} Kxg3 {[%emt 0:31:15]} 42. h5 {[%emt 0:05:36]} Kg4 {[%emt 0:00:12]} 43. Kxb6 {[%emt 0:00:08]} Kxh5 {[%emt 0:00:04] K3P-KPP} 44. c4 {[%emt 0:00:25] c5 would kill now.} g5 {[%emt 0:00:11]} 45. c5 {[%emt 0:00:06] White wants to mate with c6.} g4 {[%emt 0:00:04]} 46. c6 {[%emt 0:00:10]} g3 {[%emt 0:00:04]} 47. c7 {[%emt 0:00:05]} g2 {[%emt 0:00:03]} 48. c8=Q {[%emt 0:00:06] Threatening mate with Qg8.} g1=Q+ {[%emt 0:00:05]} 49. Kxa5 {[%emt 0:00:23] KQ-KQ} Qa1+ {[%emt 0:00:37]} 50. Kb4 {[%emt 0:01:25]} Qxb2+ {[%emt 0:00:13]} 51. Ka4 $1 {[%emt 0:00:16]} Qd4+ {[%emt 0:00:00]} 52. Kb3 {[%emt 0:00:00]} Kh4 {[%emt 0:00:00]} 53. Qe6 {[%emt 0:00:00]} h5 {[%emt 0:00:00]} 54. Qe1+ {[%emt 0:00:00]} Kg4 {[%emt 0:00:00] ...h4 is the strong threat.} 55. Qe2+ {[%emt 0:00:00]} Kg5 {[%emt 0:00:00] Hoping for ...h4.} 56. Qg2+ {[%emt 0:00:00]} (56. Qb5+ $11 Kh6 57. Qc6+ Kg7 58. Qe6) 56... Qg4 $1 $15 {[%emt 0:00:00] Black is more active. White is on the road to losing.} 57. Qd5+ {[%emt 0:00:00] [#]} Kf4 $1 {[%emt 0:00:00]} 58. Qd4+ {[%emt 0:00:00]} Kf3 {[%emt 0:00:00]} 59. Qd5+ {[%emt 0:00:00]} Kf2 {[%emt 0:00:00] ( -> ...Qf3+)} 60. Kc2 {[%emt 0:00:00]} (60. Qd2+ $17 {might work better.} Qe2 61. Qd8) 60... h4 $19 {[%emt 0:00:00]} 61. Qc5+ {[%emt 0:00:00]} Kf1 {[%emt 0:00:00]} 62. Qf8+ {[%emt 0:00:00]} Ke1 {[%emt 0:00:00]} 63. Qh6 {[%emt 0:00:00]} h3 {[%emt 0:00:00]} 64. Qc1+ $2 {[%emt 0:00:00] [#]} (64. Qh7 $19) 64... Kf2 {[%emt 0:00:00] Black mates.} 65. Qh6 {[%emt 0:00:00]} Qe2+ {[%emt 0:00:00]} 66. Kb1 {[%emt 0:00:00]} Qf1+ {[%emt 0:00:00]} 67. Kc2 {[%emt 0:00:00]} Kg1 {[%emt 0:00:32]} 68. Kb3 {[%emt 0:00:00]} Qf3+ {[%emt 0:02:07]} ({Weaker is} 68... h2 69. Qg5+ Kh1 70. Qd5+ Kg1 71. Qg5+ Kf2 72. Qf6+ Kg2 73. Qg5+ Kh3 74. Qh5+ Kg3 75. Qg5+ Kh3 76. Qh5+ Kg3 77. Qg5+ Kh3 $11) 69. Ka4 {[%emt 0:00:00]} h2 {[%emt 0:00:41]} 70. Qg5+ {[%emt 0:00:00]} Kf2 {[%emt 0:00:16]} ({And not} 70... Qg2 71. Qc1+ Kf2 72. Qb2+ Kg3 73. Qb8+ Kh4 74. Qh8+ Kg4 75. Qg8+ Kf3 76. Qd5+ Kg3 77. Qg5+ Kh3 78. Qh5+ Kg3 79. Qg5+ Kh3 80. Qh5+ Kg3 81. Qg5+ $11) 71. Qd2+ {[%emt 0:00:00]} Kg3 {[%emt 0:00:06]} 72. Qe1+ {[%emt 0:00:00]} Kh3 {[%emt 0:00:05]} 73. Ka5 {[%emt 0:00:00]} Qd5+ {[%emt 0:01:02]} 74. Ka6 {[%emt 0:00:00]} h1=Q {[%emt 0:00:25]} 75. Qe3+ {[%emt 0:00:00]} Qhf3 {[%emt 0:00:34]} 76. Qh6+ {[%emt 0:00:00]} Kg2 {[%emt 0:00:36]} 77. Qg6+ {[%emt 0:00:00]} Kf1 {[%emt 0:00:22]} 78. Qb1+ {[%emt 0:00:00]} Qdd1 {[%emt 0:00:15] Weighted Error Value: White=0.08 (flawless) /Black=0.04 (flawless)} 0-1

[Event "Teplice Open 2022"]
[Site "Teplice"]
[Date "2022.06.18"]
[Round "1.19"]
[White "Ferreira, Jorge Viterbo"]
[Black "Levitan, Ronit"]
[Result "0-1"]
[ECO "D02"]
[WhiteElo "2512"]
[BlackElo "2097"]
[Annotator "TA"]
[PlyCount "88"]
[EventDate "2022.06.18"]
[EventType "swiss"]
[EventCountry "CZE"]
[SourceTitle "playchess.com"]
[Source "ChessBase"]
[SourceQuality "1"]
[TimeControl "40/5400+30:1800+30"]

{[%evp 9,88,11,20,23,20,-4,15,9,11,10,7,21,29,30,33,28,28,28,26,39,44,11,27,-55,-56,-64,-10,-31,-33,-30,-41,-48,-22,-19,0,-45,-47,-112,-56,-154,-149,-145,-154,-235,-200,-304,-303,-307,-315,-318,-260,-258,0,-318,-304,-304,-315,-335,-335,-564,-552,-537,-550,-540,-540,-612,-604,-597,-571,-815,-825,-861,-844,-773,-588,-594,-586,-586,-573,-500,-497]} 1. d4 {[%emt 0:00:03]} Nf6 {[%emt 0:01:00]} 2. Nf3 {[%emt 0:00:09]} d5 {[%emt 0:00:16]} 3. g3 {[%emt 0:00:24]} Bg4 {[%emt 0:00:42]} 4. Bg2 {[%emt 0:01:28]} c6 {[%emt 0:00:10]} 5. h3 {[%emt 0:01:23]} Bh5 {[%emt 0:02:13]} 6. c4 {[%emt 0:03:18] D02: 1 d4 d5 2 Nf3 sidelines, including 2...Nf6 3 g3 and 2...Nf6 3 Bf4.} e6 {[%emt 0:01:06]} 7. Nc3 {[%emt 0:01:27]} Nbd7 {[%emt 0:01:21]} 8. Qb3 {[%emt 0:03:34] The position is equal.} Qb6 {[%emt 0:03:40]} 9. c5 {[%emt 0:01:38]} Qxb3 {[%emt 0:01:30]} 10. axb3 {[%emt 0:00:07] [#]} Be7 $146 {[%emt 0:03:18]} ({Predecessor:} 10... a6 11. b4 Rc8 12. g4 Bg6 13. Bf4 Be7 14. Nd2 O-O 15. Nb3 Bd8 16. Bd6 Re8 {½-½ (38) Harsha,B (2489)-Movsesian,S (2608) Warsaw 2021}) 11. b4 {[%emt 0:03:45]} O-O {[%emt 0:05:52]} 12. g4 {[%emt 0:05:57]} Bg6 {[%emt 0:00:07]} 13. Bf4 {[%emt 0:03:27]} a6 {[%emt 0:01:49]} 14. Nd2 {[%emt 0:03:08]} h5 {[%emt 0:17:41]} 15. f3 {[%emt 0:13:18]} (15. g5 $5 {[%cal Rg5f6]}) 15... Rfe8 {[%emt 0:16:54]} 16. O-O {[%emt 0:19:02]} (16. Bh2 $11) 16... hxg4 $15 17. hxg4 {[%emt 0:00:41]} Nh7 {[%emt 0:05:03]} (17... a5 $1 $15 18. bxa5 (18. Rxa5 Rxa5 19. bxa5 e5 $17) 18... e5 19. dxe5 Bxc5+ 20. Kh1 Nxe5) 18. e4 {[%emt 0:06:20]} dxe4 {[%emt 0:00:51]} 19. Ncxe4 {[%emt 0:00:45]} Bxe4 {[%emt 0:00:16]} 20. Nxe4 {[%emt 0:01:28]} Nhf6 {[%emt 0:00:59][%cal Bh7f6,Bf6d5,Bd5f4][%mdl 32]} 21. Bd2 {[%emt 0:11:58]} Rad8 {[%emt 0:03:52]} 22. Bc3 {[%emt 0:02:57]} (22. g5 $5 {[%cal Rg5f6]}) 22... Nd5 {[%emt 0:00:47]} 23. Rae1 {[%emt 0:01:22]} (23. g5 $15) 23... N7f6 {[%emt 0:02:51]} ({Better is} 23... f5 $17 24. gxf5 exf5) 24. Nd2 {[%emt 0:01:31] [#]} (24. Nxf6+ $15 Bxf6 25. f4) 24... Nf4 $1 $17 {[%emt 0:00:34]} 25. Nc4 {[%emt 0:01:22]} N6d5 {[%emt 0:00:30] Black is more active. Pair of Knights!} 26. Ne3 {[%emt 0:04:35]} (26. Bd2 $17 {is a better defense.}) 26... Bf6 {[%emt 0:01:45]} 27. Nc2 {[%emt 0:02:08]} (27. Nxd5 {might work better.} exd5 28. Kh2) 27... Bh4 $19 {[%emt 0:03:15]} 28. Re4 {[%emt 0:00:28]} f5 {[%emt 0:01:30]} 29. Re5 {[%emt 0:00:30]} Bf6 {[%emt 0:05:28]} 30. Ree1 {[%emt 0:00:07]} Bh4 {[%emt 0:00:07]} 31. Re5 {[%emt 0:00:06]} g6 {[%emt 0:03:50]} 32. Rd1 {[%emt 0:00:27]} Kf7 {[%emt 0:01:04]} 33. Bf1 {[%emt 0:01:31]} Rh8 {[%emt 0:00:29]} 34. Bc4 $2 {[%emt 0:04:25]} (34. Be1) 34... Bg3 {[%emt 0:00:24][%cal Oh8h1] [#] ( -> ...Rh1+!). Black is clearly winning.} 35. Bxd5 {[%emt 0:00:12]} cxd5 {[%emt 0:01:39]} 36. Be1 {[%emt 0:01:10]} Nh3+ {[%emt 0:02:40]} 37. Kg2 {[%emt 0:01:45]} Bxe5 {[%emt 0:00:09]} 38. dxe5 {[%emt 0:00:06]} Nf4+ {[%emt 0:00:16]} 39. Kg3 {[%emt 0:00:17]} g5 {[%emt 0:01:30] Hoping for ...Rh3+.} 40. gxf5 {[%emt 0:00:53]} exf5 {[%emt 0:01:24] Strongly threatening ...Rh3+.} 41. Nd4 {[%emt 0:30:10]} Kg6 {[%emt 0:32:16]} 42. Bc3 {[%emt 0:00:00]} Rh3+ {[%emt 0:00:00]} 43. Kf2 {[%emt 0:00:00]} Rh2+ {[%emt 0:00:00]} 44. Ke3 {[%emt 0:00:00]} Re8 {[%emt 0:00:00] Weighted Error Value: White=0.35/Black=0.20 (precise)} 0-1